fUST/lending_fUST_20250608
["ID","MTS","AMOUNT","RATE_DAILY","PERIOD"]
[364998081,1749388245068,-466.00295182,0.0002,2]
[364998082,1749388245078,-440.0,0.0002,2]
[364998083,1749388245088,-440.0,0.0002,2]
[364998084,1749388245098,-440.0,0.0002,2]
[364998085,1749388245107,-400.0,0.0002,2]
[364998086,1749388245117,-400.0,0.0002,2]
[364998087,1749388245126,-440.0,0.0002,2]
[364998088,1749388245136,-400.0,0.0002,2]
[364998089,1749388245145,-440.0,0.0002,2]
[364998090,1749388245155,-521.49316756,0.0002,2]
[364998091,1749388245164,-440.0,0.0002,2]
[364998092,1749388245174,-440.0,0.0002,2]
[364998093,1749388245184,-236.75713331,0.0002,2]
[364998094,1749388245194,-440.0,0.0002,2]
[364998095,1749388245203,-440.0,0.0002,2]
[364998096,1749388245213,-440.0,0.0002,2]
[364998097,1749388245222,-440.0,0.0002,2]
[364998098,1749388245232,-440.0,0.0002,2]
[364998099,1749388245241,-436.93770404,0.0002,2]
[364998100,1749388245251,-440.0,0.0002,2]
[364998101,1749388245260,-440.0,0.0002,2]
[364998102,1749388245269,-440.0,0.0002,2]
[364998103,1749388245279,-440.0,0.0002,2]
[364998104,1749388245289,-1839.52,0.0002,2]
[364998105,1749388245298,-440.0,0.0002,2]
[364998106,1749388245307,-440.0,0.0002,2]
[364998107,1749388245317,-440.0,0.0002,2]
[364998108,1749388245326,-440.0,0.0002,2]
[364998109,1749388245336,-574.3,0.0002,2]
[364998110,1749388245346,-440.0,0.0002,2]
[364998111,1749388245355,-316.44811244,0.0002,2]
[364998112,1749388245365,-440.0,0.0002,2]
[364998113,1749388245375,-440.0,0.0002,2]
[364998114,1749388245384,-440.0,0.0002,2]
[364998115,1749388245394,-440.0,0.0002,2]
[364998116,1749388245403,-440.0,0.0002,2]
[364998117,1749388245414,-440.0,0.0002,2]
[364998118,1749388245423,-440.0,0.0002,2]
[364998119,1749388245433,-440.0,0.0002,2]
[364998120,1749388245443,-440.0,0.0002,2]
[364998121,1749388245452,-721.65,0.0002,2]
[364998122,1749388245462,-1486.17,0.0002,2]
[364998123,1749388245471,-440.0,0.0002,2]
[364998124,1749388245480,-508.47269799,0.0002,2]
[364998125,1749388245490,-440.0,0.0002,2]
[364998126,1749388245502,-440.0,0.0002,2]
[364998127,1749388245516,-440.0,0.0002,2]
[364998128,1749388245526,-440.0,0.0002,2]
[364998129,1749388245536,-440.0,0.0002,2]
[364998130,1749388245547,-488.37,0.0002,2]
[364998131,1749388245557,-440.0,0.0002,2]
[364998132,1749388245566,-440.0,0.0002,2]
[364998133,1749388245577,-440.0,0.0002,2]
[364998134,1749388245587,-410.0,0.0002,2]
[364998135,1749388245597,-440.0,0.0002,2]
[364998136,1749388245606,-700.54,0.0002,2]
[364998137,1749388245616,-440.0,0.0002,2]
[364998138,1749388245626,-1650.64,0.0002,2]
[364998139,1749388245636,-440.0,0.0002,2]
[364998140,1749388245646,-2698.08,0.0002,2]
[364998141,1749388245656,-689.16,0.0002,2]
[364998142,1749388245666,-400.0,0.0002,2]
[364998143,1749388245676,-440.0,0.0002,2]
[364998144,1749388245686,-3933.64,0.0002,2]
[364998145,1749388245695,-440.0,0.0002,2]
[364998146,1749388245705,-400.0,0.0002,2]
[364998147,1749388245715,-440.0,0.0002,2]
[364998148,1749388245726,-440.0,0.0002,2]
[364998149,1749388245735,-1002.52,0.0002,2]
[364998150,1749388245745,-541.33,0.0002,2]
[364998151,1749388245754,-440.0,0.0002,2]
[364998152,1749388245764,-440.0,0.0002,2]
[364998153,1749388245773,-1500.67,0.0002,2]
[364998155,1749388245783,-440.0,0.0002,2]
[364998156,1749388245793,-2561.19,0.0002,2]
[364998157,1749388245802,-440.0,0.0002,2]
[364998158,1749388245811,-440.0,0.0002,2]
[364998159,1749388245821,-2272.7,0.0002,2]
[364998160,1749388245831,-440.0,0.0002,2]
[364998161,1749388245842,-440.0,0.0002,2]
[364998162,1749388245852,-440.0,0.0002,2]
[364998163,1749388245862,-440.0,0.0002,2]
[364998164,1749388245871,-440.0,0.0002,2]
[364998165,1749388245881,-5064.66,0.0002,2]
[364998166,1749388245891,-440.0,0.0002,2]
[364998167,1749388245900,-440.0,0.0002,2]
[364998168,1749388245909,-440.0,0.0002,2]
[364998169,1749388245918,-750.62,0.0002,2]
[364998170,1749388245928,-360.0,0.0002,2]
[364998171,1749388245937,-440.0,0.0002,2]
[364998172,1749388245946,-597.14,0.0002,2]
[364998173,1749388245956,-440.0,0.0002,2]
[364998174,1749388245965,-2854.42,0.0002,2]
[364998175,1749388245974,-3549.42,0.0002,2]
[364998176,1749388245984,-440.0,0.0002,2]
[364998177,1749388245993,-5228.29,0.0002,2]
[364998178,1749388246003,-778.29,0.0002,2]
[364998179,1749388246012,-440.0,0.0002,2]
[364998180,1749388246021,-956.95,0.0002,2]
[364998181,1749388246031,-440.0,0.0002,2]
[364998182,1749388246041,-2371.97,0.0002,2]
[364998183,1749388246051,-440.0,0.0002,2]
[364998184,1749388246060,-400.0,0.0002,2]
[364998185,1749388246070,-440.0,0.0002,2]
[364998186,1749388246079,-440.0,0.0002,2]
[364998187,1749388246089,-4000.0,0.0002,4]
[364998188,1749388246099,-3033.26,0.0002,2]
[364998190,1749388246109,-1266.57,0.0002,2]
[364998192,1749388246118,-374.76786021,0.0002,2]
[364998194,1749388246128,-899.83,0.0002,2]
[364998196,1749388246137,-440.0,0.0002,2]
[364998198,1749388246147,-440.0,0.0002,2]
[364998199,1749388246157,-1564.27,0.0002,2]
[364998200,1749388246166,-440.0,0.0002,2]
[364998201,1749388246176,-440.0,0.0002,2]
[364998202,1749388246185,-420.0,0.0002,2]
[364998203,1749388246195,-410.0,0.0002,2]
[364998204,1749388246206,-1118.41,0.0002,2]
[364998205,1749388246216,-1680.0,0.00020007,2]
[364998206,1749388246225,-1000.0,0.00020021,2]
[364998207,1749388246235,-803.34411662,0.00020021,2]
[364998208,1749388246245,-504.49898345,0.00020021,2]
[364998209,1749388246254,-151.0,0.00020055,2]
[364998210,1749388246264,-500.0,0.00020055,2]
[364998211,1749388246273,-500.0,0.00020055,2]
[364998212,1749388246283,-500.0,0.00020055,2]
[364998213,1749388246293,-500.0,0.00020055,2]
[364998214,1749388246302,-151.0,0.00020055,2]
[364998215,1749388246312,-151.0,0.00020055,2]
[364998216,1749388246321,-151.0,0.00020055,2]
[364998217,1749388246332,-500.0,0.00020055,2]
[364998218,1749388246342,-500.0,0.00020055,2]
[364998219,1749388246351,-151.0,0.00020055,2]
[364998220,1749388246361,-500.0,0.00020055,2]
[364998221,1749388246370,-151.5395447,0.00020055,2]
[364998222,1749388246380,-151.0,0.00020082,2]
[364998223,1749388246389,-500.0,0.00020082,2]
[364998224,1749388246399,-500.0,0.00020082,2]
[364998225,1749388246408,-500.0,0.00020082,2]
[364998226,1749388246418,-500.0,0.00020082,2]
[364998227,1749388246427,-500.0,0.00020082,2]
[364998228,1749388246437,-500.0,0.00020082,2]
[364998229,1749388246446,-500.0,0.00020082,2]
[364998230,1749388246456,-411.16,0.0002009,30]
[364998231,1749388246466,-151.0,0.0002011,2]
[364998232,1749388246475,-500.0,0.0002011,2]
[364998233,1749388246485,-236.25801661,0.0002011,2]
[364998234,1749388246495,-500.0,0.0002011,2]
[364998235,1749388246507,-500.0,0.0002011,2]
[364998236,1749388246517,-500.0,0.0002011,2]
[364998237,1749388246526,-349.0,0.0002011,2]
[364998238,1749388246535,-500.0,0.0002011,2]
[364998239,1749388246545,-648.22406537,0.0002013,2]
[364998240,1749388246555,-151.0,0.00020137,2]
[364998241,1749388246565,-500.0,0.00020137,2]
[364998242,1749388246575,-601.65446202,0.00020137,2]
[364998243,1749388246587,-584.93341608,0.00020137,2]
[364998244,1749388246597,-500.0,0.00020137,2]
[364998245,1749388246607,-500.0,0.00020137,2]
[364998246,1749388246616,-189.487,0.00020156,2]
[364998247,1749388246627,-282.26293995,0.00020165,2]
[364998248,1749388246636,-184.41159364,0.00020165,2]
[364998249,1749388246646,-500.0,0.00020165,2]
[364998250,1749388246655,-325.31816384,0.00020165,2]
[364998251,1749388246665,-1000.0,0.00020165,2]
[364998252,1749388246674,-500.0,0.00020192,2]
[364998253,1749388246683,-500.0,0.00020219,2]
[364998254,1749388246693,-500.0,0.00020247,2]
[364998255,1749388246812,-1500.0,0.00020268,2]
[364998256,1749388246822,-500.0,0.00020268,2]
[364998257,1749388246832,-1500.0,0.00020268,2]
[364998258,1749388246842,-1500.0,0.00020268,2]
[364998259,1749388246851,-1000.0,0.00020268,2]
[364998260,1749388246861,-160.0,0.00020269,2]
[364998261,1749388246871,-842.5625,0.00020269,2]
[364998262,1749388246880,-160.0,0.00020269,2]
[364998263,1749388246890,-160.0,0.00020269,2]
[364998264,1749388246900,-423.98131849,0.00020269,2]
[364998265,1749388246910,-229.60437222,0.00020269,2]
[364998266,1749388246919,-315.11541396,0.00020269,2]
[364998267,1749388246929,-440.0,0.00020273,2]
[364998268,1749388246938,-440.0,0.00020273,2]
[364998269,1749388246948,-440.0,0.00020273,2]
[364998270,1749388246958,-440.84,0.00020273,2]
[364998271,1749388246968,-519.49,0.00020273,2]
[364998272,1749388246978,-450.0,0.00020273,2]
[364998273,1749388246987,-440.0,0.00020273,2]
[364998274,1749388246997,-390.0,0.00020273,2]
[364998275,1749388247007,-390.0,0.00020273,2]
[364998276,1749388247017,-440.0,0.00020273,2]
[364998277,1749388247027,-440.0,0.00020273,2]
[364998278,1749388247037,-410.0,0.00020273,2]
[364998279,1749388247046,-440.0,0.00020273,2]
[364998280,1749388247056,-542.58357322,0.00020273,2]
[364998281,1749388247066,-440.0,0.00020273,2]
[364998282,1749388247076,-440.0,0.00020273,2]
[364998283,1749388247086,-440.0,0.00020273,2]
[364998284,1749388247095,-307.83763468,0.00020273,2]
[364998285,1749388247105,-589.05792954,0.00020273,2]
[364998286,1749388247115,-440.0,0.00020273,2]
[364998287,1749388247125,-440.0,0.00020273,2]
[364998288,1749388247134,-400.0,0.00020273,2]
[364998289,1749388247144,-440.0,0.00020273,2]
[364998290,1749388247154,-440.0,0.00020273,2]
[364998291,1749388247164,-400.0,0.00020273,2]
[364998292,1749388247174,-440.0,0.00020273,2]
[364998293,1749388247184,-440.0,0.00020273,2]
[364998294,1749388247193,-440.0,0.00020273,2]
[364998295,1749388247203,-440.0,0.00020273,2]
[364998296,1749388247213,-440.0,0.00020273,2]
[364998297,1749388247223,-420.0,0.00020273,2]
[364998298,1749388247234,-440.0,0.00020273,2]
[364998299,1749388247244,-440.0,0.00020273,2]
[364998300,1749388247254,-440.0,0.00020273,2]
[364998301,1749388247264,-1839.52,0.00020273,2]
[364998302,1749388247273,-440.0,0.00020273,2]
[364998303,1749388247283,-440.0,0.00020273,2]
[364998304,1749388247293,-440.0,0.00020273,2]
[364998305,1749388247302,-440.0,0.00020273,2]
[364998306,1749388247312,-574.3,0.00020273,2]
[364998307,1749388247321,-440.0,0.00020273,2]
[364998308,1749388247331,-581.65472452,0.00020273,2]
[364998309,1749388247341,-440.0,0.00020273,2]
[364998310,1749388247350,-440.0,0.00020273,2]
[364998311,1749388247360,-440.0,0.00020273,2]
[364998312,1749388247370,-440.0,0.00020273,2]
[364998313,1749388247381,-440.0,0.00020273,2]
[364998314,1749388247391,-440.0,0.00020273,2]
[364998315,1749388247400,-440.0,0.00020273,2]
[364998316,1749388247410,-440.0,0.00020273,2]
[364998317,1749388247420,-721.65,0.00020273,2]
[364998318,1749388247430,-1486.17,0.00020273,2]
[364998319,1749388247440,-440.0,0.00020273,2]
[364998320,1749388247450,-440.0,0.00020273,2]
[364998321,1749388247459,-440.0,0.00020273,2]
[364998322,1749388247469,-440.0,0.00020273,2]
[364998323,1749388247479,-440.0,0.00020273,2]
[364998324,1749388247489,-440.0,0.00020273,2]
[364998325,1749388247498,-488.37,0.00020273,2]
[364998326,1749388247512,-440.0,0.00020273,2]
[364998327,1749388247523,-440.0,0.00020273,2]
[364998328,1749388247532,-440.0,0.00020273,2]
[364998329,1749388247542,-440.0,0.00020273,2]
[364998330,1749388247552,-700.54,0.00020273,2]
[364998331,1749388247562,-440.0,0.00020273,2]
[364998332,1749388247572,-1650.64,0.00020273,2]
[364998333,1749388247582,-440.0,0.00020273,2]
[364998334,1749388247592,-2698.08,0.00020273,2]
[364998335,1749388247602,-689.16,0.00020273,2]
[364998336,1749388247611,-440.0,0.00020273,2]
[364998337,1749388247621,-3933.64,0.00020273,2]
[364998338,1749388247631,-440.0,0.00020273,2]
[364998339,1749388247640,-440.0,0.00020273,2]
[364998340,1749388247649,-440.0,0.00020273,2]
[364998341,1749388247660,-1002.52,0.00020273,2]
[364998342,1749388247669,-541.33,0.00020273,2]
[364998343,1749388247678,-440.0,0.00020273,2]
[364998344,1749388247688,-440.0,0.00020273,2]
[364998345,1749388247697,-1500.67,0.00020273,2]
[364998346,1749388247706,-390.0,0.00020273,2]
[364998347,1749388247715,-2561.19,0.00020273,2]
[364998348,1749388247725,-440.0,0.00020273,2]
[364998349,1749388247736,-440.0,0.00020273,2]
[364998350,1749388247745,-2272.7,0.00020273,2]
[364998351,1749388247754,-440.0,0.00020273,2]
[364998352,1749388247763,-440.0,0.00020273,2]
[364998353,1749388247772,-440.0,0.00020273,2]
[364998354,1749388247781,-440.0,0.00020273,2]
[364998355,1749388247790,-440.0,0.00020273,2]
[364998356,1749388247802,-5064.66,0.00020273,2]
[364998357,1749388247812,-440.0,0.00020273,2]
[364998358,1749388247823,-390.0,0.00020273,2]
[364998359,1749388247835,-440.0,0.00020273,2]
[364998360,1749388247846,-750.62,0.00020273,2]
[364998361,1749388247856,-440.0,0.00020273,2]
[364998362,1749388247866,-597.14,0.00020273,2]
[364998363,1749388247878,-440.0,0.00020273,2]
[364998364,1749388247887,-2854.42,0.00020273,2]
[364998365,1749388247898,-3549.42,0.00020273,2]
[364998366,1749388247909,-440.0,0.00020273,2]
[364998367,1749388247919,-5228.29,0.00020273,2]
[364998368,1749388247929,-778.29,0.00020273,2]
[364998369,1749388247939,-440.0,0.00020273,2]
[364998370,1749388247949,-956.95,0.00020273,2]
[364998371,1749388247959,-440.0,0.00020273,2]
[364998372,1749388247968,-2371.97,0.00020273,2]
[364998373,1749388247978,-440.0,0.00020273,2]
[364998374,1749388247989,-440.0,0.00020273,2]
[364998375,1749388247998,-440.0,0.00020273,2]
[364998376,1749388248008,-3033.26,0.00020273,2]
[364998377,1749388248017,-1266.57,0.00020273,2]
[364998378,1749388248027,-899.83,0.00020273,2]
[364998379,1749388248037,-440.0,0.00020273,2]
[364998380,1749388248047,-440.0,0.00020273,2]
[364998381,1749388248056,-1564.27,0.00020273,2]
[364998382,1749388248066,-440.0,0.00020273,2]
[364998383,1749388248075,-440.0,0.00020273,2]
[364998384,1749388248085,-1118.41,0.00020273,2]
[364998385,1749388248095,-500.0,0.00020274,2]
[364998386,1749388248104,-500.0,0.00020302,2]
[364998387,1749388248114,-500.0,0.00020329,2]
[364998388,1749388248124,-500.0,0.00020356,2]
[364998389,1749388248134,-500.0,0.00020384,2]
[364998390,1749388248144,-500.0,0.00020411,2]
[364998391,1749388248154,-500.0,0.00020439,2]
[364998392,1749388248164,-500.0,0.00020466,2]
[364998393,1749388248173,-500.0,0.00020493,2]
[364998394,1749388248183,-500.0,0.00020521,2]
[364998395,1749388248194,-167.79915832,0.00020525,2]
[364998396,1749388248204,-440.0,0.00020547,2]
[364998397,1749388248214,-253.9,0.00020547,2]
[364998398,1749388248224,-243.5046986,0.00020547,2]
[364998399,1749388248234,-440.0,0.00020547,2]
[364998400,1749388248243,-440.84,0.00020547,2]
[364998401,1749388248253,-519.49,0.00020547,2]
[364998402,1749388248263,-390.0,0.00020547,2]
[364998403,1749388248273,-440.0,0.00020547,2]
[364998404,1749388248282,-440.0,0.00020547,2]
[364998405,1749388248292,-440.0,0.00020547,2]
[364998406,1749388248301,-440.0,0.00020547,2]
[364998407,1749388248311,-340.0,0.00020547,2]
[364998408,1749388248321,-227.85071538,0.00020547,2]
[364998409,1749388248331,-440.0,0.00020547,2]
[364998410,1749388248341,-440.0,0.00020547,2]
[364998411,1749388248350,-460.0,0.00020547,2]
[364998412,1749388248359,-440.0,0.00020547,2]
[364998413,1749388248369,-440.0,0.00020547,2]
[364998414,1749388248488,-440.0,0.00020547,2]
[364998415,1749388248500,-440.0,0.00020547,2]
[364998416,1749388248514,-440.0,0.00020547,2]
[364998417,1749388248524,-440.0,0.00020547,2]
[364998418,1749388248535,-500.0,0.00020547,2]
[364998419,1749388248544,-440.0,0.00020547,2]
[364998420,1749388248555,-440.0,0.00020547,2]
[364998421,1749388248565,-440.0,0.00020547,2]
[364998422,1749388248576,-1839.52,0.00020547,2]
[364998423,1749388248586,-440.0,0.00020547,2]
[364998424,1749388248597,-440.0,0.00020547,2]
[364998425,1749388248607,-440.0,0.00020547,2]
[364998426,1749388248618,-440.0,0.00020547,2]
[364998427,1749388248628,-574.3,0.00020547,2]
[364998428,1749388248638,-256.89084586,0.00020547,2]
[364998429,1749388248648,-440.0,0.00020547,2]
[364998430,1749388248659,-440.0,0.00020547,2]
[364998431,1749388248669,-440.0,0.00020547,2]
[364998432,1749388248679,-440.0,0.00020547,2]
[364998433,1749388248690,-440.0,0.00020547,2]
[364998434,1749388248700,-440.0,0.00020547,2]
[364998435,1749388248710,-440.0,0.00020547,2]
[364998436,1749388248720,-280.5111075,0.00020547,2]
[364998437,1749388248730,-721.65,0.00020547,2]
[364998438,1749388248740,-1486.17,0.00020547,2]
[364998439,1749388248750,-436.13,0.00020547,2]
[364998440,1749388248760,-440.0,0.00020547,2]
[364998441,1749388248771,-440.0,0.00020547,2]
[364998442,1749388248781,-380.0,0.00020547,2]
[364998443,1749388248790,-440.0,0.00020547,2]
[364998444,1749388248800,-460.0,0.00020547,2]
[364998445,1749388248810,-488.37,0.00020547,2]
[364998446,1749388248820,-440.0,0.00020547,2]
[364998447,1749388248830,-440.0,0.00020547,2]
[364998448,1749388248839,-440.0,0.00020547,2]
[364998449,1749388248849,-440.0,0.00020547,2]
[364998450,1749388248859,-700.54,0.00020547,2]
[364998451,1749388248869,-440.0,0.00020547,2]
[364998452,1749388248878,-1650.64,0.00020547,2]
[364998453,1749388248888,-440.0,0.00020547,2]
[364998454,1749388248899,-2698.08,0.00020547,2]
[364998455,1749388248908,-689.16,0.00020547,2]
[364998456,1749388248918,-160.0,0.00020547,2]
[364998457,1749388248928,-440.0,0.00020547,2]
[364998458,1749388248938,-3933.64,0.00020547,2]
[364998459,1749388248948,-440.0,0.00020547,2]
[364998460,1749388248958,-440.0,0.00020547,2]
[364998461,1749388248967,-440.0,0.00020547,2]
[364998462,1749388248977,-1002.52,0.00020547,2]
[364998463,1749388248987,-541.33,0.00020547,2]
[364998464,1749388248997,-440.0,0.00020547,2]
[364998465,1749388249007,-440.0,0.00020547,2]
[364998466,1749388249017,-1500.67,0.00020547,2]
[364998467,1749388249028,-2561.19,0.00020547,2]
[364998468,1749388249038,-440.0,0.00020547,2]
[364998469,1749388249048,-440.0,0.00020547,2]
[364998470,1749388249058,-2272.7,0.00020547,2]
[364998471,1749388249068,-440.0,0.00020547,2]
[364998472,1749388249077,-440.0,0.00020547,2]
[364998473,1749388249087,-440.0,0.00020547,2]
[364998474,1749388249097,-400.0,0.00020547,2]
[364998475,1749388249107,-380.0,0.00020547,2]
[364998476,1749388249116,-440.0,0.00020547,2]
[364998477,1749388249126,-5064.66,0.00020547,2]
[364998478,1749388249136,-440.0,0.00020547,2]
[364998479,1749388249147,-750.62,0.00020547,2]
[364998480,1749388249157,-440.0,0.00020547,2]
[364998481,1749388249167,-597.14,0.00020547,2]
[364998482,1749388249177,-440.0,0.00020547,2]
[364998483,1749388249187,-2854.42,0.00020547,2]
[364998484,1749388249196,-3549.42,0.00020547,2]
[364998485,1749388249206,-440.0,0.00020547,2]
[364998486,1749388249215,-5228.29,0.00020547,2]
[364998487,1749388249225,-778.29,0.00020547,2]
[364998488,1749388249235,-440.0,0.00020547,2]
[364998489,1749388249244,-956.95,0.00020547,2]
[364998490,1749388249254,-380.0,0.00020547,2]
[364998491,1749388249264,-2371.97,0.00020547,2]
[364998492,1749388249273,-440.0,0.00020547,2]
[364998493,1749388249283,-440.0,0.00020547,2]
[364998494,1749388249292,-440.0,0.00020547,2]
[364998495,1749388249301,-3033.26,0.00020547,2]
[364998496,1749388249311,-1266.57,0.00020547,2]
[364998497,1749388249321,-899.83,0.00020547,2]
[364998498,1749388249330,-440.0,0.00020547,2]
[364998499,1749388249340,-440.0,0.00020547,2]
[364998500,1749388249350,-1564.27,0.00020547,2]
[364998501,1749388249360,-440.0,0.00020547,2]
[364998502,1749388249370,-1118.41,0.00020547,2]
[364998503,1749388249379,-500.0,0.00020548,2]
[364998504,1749388249389,-571.35913288,0.00020548,2]
[364998505,1749388249400,-240.0,0.00020548,2]
[364998506,1749388249410,-2332.87,0.000206,2]
[364998507,1749388249420,-1453.73,0.000206,2]
[364998508,1749388249431,-42791.84,0.000206,2]
[364998509,1749388249441,-308.30916528,0.00020625,2]
[364998510,1749388249451,-463.6982402,0.00020649,2]
[364998511,1749388249461,-959.36,0.00020657,2]
[364998512,1749388249471,-151.0,0.000207,3]
[364998513,1749388249481,-1452.25893078,0.00020713,2]
[364998514,1749388249490,-255.90630833,0.00020767,2]
[364998515,1749388249500,-2000.0,0.00020816,2]
[364998516,1749388249512,-440.0,0.00020821,2]
[364998517,1749388249523,-440.84,0.00020821,2]
[364998518,1749388249533,-519.49,0.00020821,2]
[364998519,1749388249544,-440.0,0.00020821,2]
[364998520,1749388249555,-440.0,0.00020821,2]
[364998521,1749388249564,-410.0,0.00020821,2]
[364998522,1749388249575,-440.0,0.00020821,2]
[364998523,1749388249588,-440.0,0.00020821,2]
[364998524,1749388249598,-360.0,0.00020821,2]
[364998525,1749388249609,-440.0,0.00020821,2]
[364998526,1749388249619,-440.0,0.00020821,2]
[364998527,1749388249631,-380.0,0.00020821,2]
[364998528,1749388249640,-440.0,0.00020821,2]
[364998529,1749388249650,-440.0,0.00020821,2]
[364998530,1749388249660,-440.0,0.00020821,2]
[364998531,1749388249671,-440.0,0.00020821,2]
[364998532,1749388249680,-440.0,0.00020821,2]
[364998533,1749388249690,-380.0,0.00020821,2]
[364998534,1749388249700,-1839.52,0.00020821,2]
[364998535,1749388249710,-440.0,0.00020821,2]
[364998536,1749388249720,-440.0,0.00020821,2]
[364998537,1749388249729,-440.0,0.00020821,2]
[364998538,1749388249738,-370.0,0.00020821,2]
[364998539,1749388249747,-574.3,0.00020821,2]
[364998540,1749388249757,-440.0,0.00020821,2]
[364998541,1749388249767,-303.24,0.00020821,2]
[364998542,1749388249776,-440.0,0.00020821,2]
[364998543,1749388249786,-440.0,0.00020821,2]
[364998544,1749388249796,-440.0,0.00020821,2]
[364998545,1749388249806,-440.0,0.00020821,2]
[364998546,1749388249816,-370.0,0.00020821,2]
[364998547,1749388249826,-721.65,0.00020821,2]
[364998548,1749388249836,-1486.17,0.00020821,2]
[364998549,1749388249846,-440.0,0.00020821,2]
[364998550,1749388249855,-440.0,0.00020821,2]
[364998551,1749388249864,-440.0,0.00020821,2]
[364998552,1749388249874,-488.37,0.00020821,2]
[364998553,1749388249883,-440.0,0.00020821,2]
[364998554,1749388249893,-440.0,0.00020821,2]
[364998555,1749388249902,-440.0,0.00020821,2]
[364998556,1749388249912,-440.0,0.00020821,2]
[364998557,1749388249921,-700.54,0.00020821,2]
[364998558,1749388249931,-440.0,0.00020821,2]
[364998559,1749388249940,-1650.64,0.00020821,2]
[364998560,1749388249950,-440.0,0.00020821,2]
[364998561,1749388250046,-2698.08,0.00020821,2]
[364998562,1749388250057,-689.16,0.00020821,2]
[364998563,1749388250068,-423.51,0.00020821,2]
[364998564,1749388250079,-3933.64,0.00020821,2]
[364998565,1749388250089,-440.0,0.00020821,2]
[364998566,1749388250098,-440.0,0.00020821,2]
[364998567,1749388250108,-440.0,0.00020821,2]
[364998568,1749388250118,-1002.52,0.00020821,2]
[364998569,1749388250128,-541.33,0.00020821,2]
[364998570,1749388250138,-440.0,0.00020821,2]
[364998571,1749388250148,-440.0,0.00020821,2]
[364998572,1749388250159,-1500.67,0.00020821,2]
[364998573,1749388250169,-2561.19,0.00020821,2]
[364998574,1749388250179,-210.67495731,0.00020821,2]
[364998575,1749388250189,-440.0,0.00020821,2]
[364998576,1749388250199,-2272.7,0.00020821,2]
[364998577,1749388250209,-440.0,0.00020821,2]
[364998578,1749388250219,-440.0,0.00020821,2]
[364998579,1749388250229,-440.0,0.00020821,2]
[364998580,1749388250239,-440.0,0.00020821,2]
[364998581,1749388250249,-5064.66,0.00020821,2]
[364998582,1749388250258,-440.0,0.00020821,2]
[364998583,1749388250268,-750.62,0.00020821,2]
[364998584,1749388250278,-440.0,0.00020821,2]
[364998585,1749388250288,-597.14,0.00020821,2]
[364998586,1749388250298,-440.0,0.00020821,2]